bitfinex/quotes_BTCUSD_20250225
["timestamp","ask_amount","ask_price","bid_price","bid_amount"]
[1740515137340,0.0826,88821.0,88804.0,0.1]
[1740515137547,0.3293,88855.0,88807.0,0.1]
[1740515137548,0.168903,88808.0,88807.0,0.1]
[1740515137765,0.168928,88795.0,88794.0,0.05030747]
[1740515137984,0.22523,88798.0,88791.0,0.1]
[1740515138273,0.168943,88787.0,88786.0,0.05030747]
[1740515138458,0.33153834,88814.0,88768.0,0.5366]
[1740515138459,0.0498,88794.0,88769.0,0.1]
[1740515138694,0.0498,88794.0,88768.0,0.05030747]
[1740515138908,0.0498,88794.0,88764.0,0.1]
[1740515139127,0.168972,88772.0,88768.0,0.05030747]
[1740515139358,0.3,88792.0,88753.0,0.1]
[1740515139591,0.03085797,88772.0,88752.0,0.1]
[1740515139806,0.03085797,88772.0,88746.0,0.05030747]
[1740515139807,0.00840997,88771.0,88746.0,0.1]
[1740515140033,0.169021,88746.0,88745.0,0.24723299]
[1740515140469,0.03183794,88772.0,88759.0,0.1]
[1740515140685,0.168995,88760.0,88759.0,0.1]
[1740515141555,0.352293,88774.0,88771.0,0.1]
[1740515141556,0.03122664,88772.0,88771.0,0.1]
[1740515141782,0.04969253,88810.0,88771.0,0.1]
[1740515141783,0.168936,88791.0,88790.0,0.1]
[1740515143243,0.00097473,88794.0,88793.0,0.1]
[1740515143455,0.16990473,88794.0,88793.0,0.1]
[1740515144095,0.00097473,88794.0,88793.0,0.1]
[1740515144303,0.00097473,88794.0,88793.0,0.21374753]
[1740515144584,0.00097473,88794.0,88793.0,0.432987]
[1740515145026,0.00097473,88794.0,88793.0,0.264055]
[1740515145474,0.00097473,88794.0,88793.0,0.432987]
[1740515145709,0.00097473,88794.0,88793.0,0.758087]
[1740515146121,0.00097473,88794.0,88793.0,1.30922785]
[1740515146343,0.1,88820.0,88819.0,0.31918947]
[1740515146564,0.10042289,88820.0,88819.0,0.86111487]
[1740515147712,0.10042289,88820.0,88819.0,1.61955393]
[1740515147918,0.0008485,88849.0,88848.0,0.31913447]
[1740515148038,0.00097534,88849.0,88848.0,0.432882]
[1740515148244,0.00097534,88849.0,88848.0,0.264055]
[1740515148687,0.00097534,88849.0,88848.0,0.22674753]
[1740515149086,0.16980034,88849.0,88848.0,0.21374753]
[1740515149288,0.16980034,88849.0,88848.0,0.264055]
[1740515149612,0.00097534,88849.0,88848.0,0.1]
[1740515149831,0.16980034,88849.0,88848.0,0.15030747]
[1740515149988,0.16980034,88849.0,88848.0,0.1]
[1740515150207,0.16980034,88849.0,88848.0,0.15030747]
[1740515150379,0.16980034,88849.0,88848.0,0.1]
[1740515150715,0.16980034,88849.0,88848.0,0.15030747]
[1740515151508,0.00097534,88849.0,88848.0,0.264055]
[1740515151693,0.00097534,88849.0,88848.0,0.432882]
[1740515151940,0.00097534,88849.0,88848.0,0.264055]
[1740515152319,0.16980034,88849.0,88848.0,0.264055]
[1740515152538,0.00097534,88849.0,88848.0,0.264055]
[1740515152742,0.16980034,88849.0,88848.0,0.264055]
[1740515153098,0.00097534,88849.0,88848.0,0.264055]
[1740515153267,0.00097534,88849.0,88848.0,0.432882]
[1740515153471,0.00097534,88849.0,88848.0,0.264055]
[1740515153684,0.16980034,88849.0,88848.0,0.264055]
[1740515154533,0.00097534,88849.0,88848.0,0.757982]
[1740515154958,0.00097534,88849.0,88848.0,0.750022]
[1740515155536,0.00097534,88849.0,88848.0,0.581195]
[1740515155735,0.00097534,88849.0,88848.0,0.750022]
[1740515158235,0.00097534,88849.0,88848.0,0.76456285]
[1740515159262,0.00097534,88849.0,88848.0,0.69971453]
[1740515159460,0.16980034,88849.0,88848.0,0.581195]
[1740515159662,0.16980034,88849.0,88848.0,0.489155]
[1740515159864,0.16980034,88849.0,88848.0,0.43884753]
[1740515160152,0.00097534,88849.0,88848.0,0.581195]
[1740515160379,0.00097534,88849.0,88848.0,0.750022]
[1740515160579,0.16980034,88849.0,88848.0,0.581195]
[1740515160969,0.16980034,88849.0,88848.0,0.256095]
[1740515161166,0.00097534,88849.0,88848.0,0.424922]
[1740515161613,0.00097534,88849.0,88848.0,0.256095]
[1740515161787,0.16980034,88849.0,88848.0,0.256095]
[1740515162395,0.16980034,88849.0,88848.0,0.20578753]
[1740515162599,0.21860034,88849.0,88848.0,0.09204]
[1740515162819,0.04977534,88849.0,88848.0,0.424922]
[1740515163007,0.21860034,88849.0,88848.0,0.14234747]
[1740515164021,0.04977534,88849.0,88848.0,0.14234747]
[1740515164232,0.00097534,88849.0,88848.0,0.424922]
[1740515165164,3.4e-07,88849.0,88848.0,0.86456285]
[1740515165886,3.4e-07,88849.0,88848.0,1.40116285]
[1740515166103,3.4e-07,88849.0,88848.0,2.52128907]
[1740515166303,3.4e-07,88849.0,88848.0,2.58793566]
[1740515166520,0.168723,88903.0,88871.0,0.31113047]
[1740515166748,0.0451,88904.0,88871.0,0.974438]
[1740515167018,0.0451,88904.0,88871.0,0.45237885]
[1740515167257,3.8e-07,88872.0,88871.0,1.45339571]
[1740515167625,3.8e-07,88872.0,88871.0,1.47352193]
[1740515167763,3.8e-07,88872.0,88871.0,1.42321446]
[1740515167962,3.8e-07,88872.0,88871.0,2.17802993]
[1740515168469,3.8e-07,88872.0,88871.0,2.57802993]
[1740515168687,3.8e-07,88872.0,88871.0,4.09907063]
[1740515168889,3.8e-07,88872.0,88871.0,4.131411]
[1740515169119,3.8e-07,88872.0,88871.0,4.1998956]
[1740515169323,0.00486968,88909.0,88881.0,0.24234747]
[1740515169530,0.00096947,88882.0,88881.0,2.10109985]
[1740515169902,0.00096947,88882.0,88881.0,2.00109985]
[1740515170326,0.00096947,88882.0,88881.0,1.90232519]
[1740515170557,0.00096947,88882.0,88881.0,0.52238919]
[1740515170817,0.00012677,88882.0,88881.0,0.52238919]
[1740515171040,0.00983887,88888.0,88887.0,0.31110047]
[1740515171188,0.00983887,88888.0,88887.0,0.424848]
[1740515171395,0.79460502,88920.0,88917.0,0.09204]
[1740515171595,0.79460502,88920.0,88919.0,0.14234747]
[1740515171779,0.79502775,88920.0,88919.0,0.256095]
[1740515174041,0.79502775,88920.0,88919.0,0.424787]
[1740515174160,0.7949315,88920.0,88919.0,0.424787]
[1740515174370,0.7899315,88920.0,88919.0,0.424787]
[1740515174797,0.7899315,88920.0,88919.0,0.458588]
[1740515175555,0.7899315,88920.0,88919.0,0.47871422]
[1740515175765,0.0008481,88924.0,88923.0,0.37526585]
[1740515175766,1e-07,88924.0,88923.0,0.37526585]
[1740515175994,0.00012679,88924.0,88923.0,1.23932085]
[1740515176628,0.00012679,88924.0,88923.0,1.10197338]
[1740515176824,0.00012679,88924.0,88923.0,1.16703429]
[1740515177081,0.0568524,89045.0,88923.0,1.16703429]
[1740515177082,0.19740875,88970.0,88956.0,0.05030747]
[1740515177226,0.3,88989.0,88954.0,0.09204]
[1740515177227,0.224797,88969.0,88954.0,0.09204]
[1740515177428,0.16862,88957.0,88956.0,0.05030747]
[1740515177665,0.674397,88968.0,88950.0,0.09204]
[1740515177882,0.674397,88968.0,88943.0,0.09204]
[1740515177883,0.168645,88944.0,88943.0,0.09204]
[1740515178087,0.3,88973.0,88954.0,0.09204]
[1740515178228,0.29984,88973.0,88954.0,0.09204]
[1740515178432,0.04500007,88975.0,88959.0,0.09204]
[1740515178672,0.168615,88960.0,88959.0,0.09204]
[1740515178922,0.214812,88963.0,88959.0,0.09204]
[1740515179062,0.168615,88960.0,88959.0,0.09204]
[1740515179265,0.168615,88960.0,88943.0,0.11374753]
[1740515179266,0.168645,88944.0,88943.0,0.09204]
[1740515179941,0.168645,88944.0,88943.0,0.05030747]
[1740515180147,0.168645,88944.0,88935.0,0.00809395]
[1740515180148,0.16866,88936.0,88935.0,0.00809395]
[1740515180351,0.21446,88936.0,88935.0,0.00809395]
[1740515180764,0.21446,88936.0,88925.0,0.01294675]
[1740515180765,0.168679,88926.0,88925.0,0.01294675]
[1740515181463,0.305902,88928.0,88912.0,0.09204]
[1740515181464,0.168704,88913.0,88912.0,0.09204]
[1740515182011,0.0766,88943.0,88924.0,0.09204]
[1740515182217,0.224868,88941.0,88924.0,0.09204]
[1740515182419,0.0766,88943.0,88924.0,0.09204]
[1740515182663,0.0766,88957.0,88935.0,0.05030747]
[1740515182862,0.224877,88938.0,88935.0,0.05030747]
[1740515183077,0.21446,88936.0,88935.0,0.05030747]
[1740515183474,0.224885,88934.0,88921.0,0.09204]
[1740515183674,0.16869,88920.0,88919.0,0.14234747]
[1740515183874,0.1687,88915.0,88914.0,0.09204]
[1740515184078,0.1687,88915.0,88914.0,0.14234747]
[1740515184457,0.22493,88917.0,88910.0,0.09204]
[1740515184654,0.168719,88905.0,88904.0,0.09598858]
[1740515184903,0.168719,88905.0,88904.0,0.14629605]
[1740515185105,0.168719,88905.0,88904.0,0.05425605]
[1740515185412,0.168719,88905.0,88904.0,0.1427702]
[1740515185559,0.168719,88905.0,88904.0,0.00042273]
[1740515187019,0.224951,88908.0,88904.0,0.00042273]
[1740515187020,0.168713,88908.0,88906.0,0.09204]
[1740515187206,0.168715,88907.0,88906.0,0.09204]
[1740515187564,0.0465,88923.0,88906.0,0.14234747]
[1740515187768,0.168715,88907.0,88906.0,0.14234747]
[1740515187965,0.168715,88907.0,88906.0,0.05030747]
[1740515188793,0.224918,88921.0,88906.0,0.05030747]
[1740515188794,0.0478,88939.0,88928.0,0.09204]
[1740515188951,0.168664,88934.0,88933.0,0.09204]
[1740515189150,0.168664,88934.0,88915.0,0.0899761]
[1740515189151,0.168658,88937.0,88936.0,0.09204]
[1740515189844,0.0478,88939.0,88936.0,0.09204]
[1740515190051,0.216454,88939.0,88938.0,0.09204]
[1740515190751,0.0478,88939.0,88938.0,0.20578753]
[1740515190955,0.0756,88965.0,88938.0,0.20578753]
[1740515190956,0.0458,88956.0,88955.0,0.09204]
[1740515191104,0.1694438,88969.0,88968.0,0.14234747]
[1740515191304,0.16957047,88969.0,88968.0,0.05030747]
[1740515191507,0.168607,88964.0,88963.0,0.05030747]
[1740515191711,0.16863,88952.0,88951.0,0.09204]
[1740515191929,0.168611,88962.0,88961.0,0.09204]
[1740515192333,0.168611,88962.0,88961.0,0.14234747]
[1740515192897,0.168632,88951.0,88950.0,0.09204]
[1740515193144,0.0458,88963.0,88943.0,0.09204]
[1740515193343,0.224857,88946.0,88933.0,0.01284]
[1740515193558,0.168651,88941.0,88940.0,0.0584148]
[1740515193955,0.168651,88941.0,88940.0,0.00810733]
[1740515194128,0.19619833,88941.0,88940.0,0.00810733]
[1740515194540,0.168675,88928.0,88927.0,0.09204]
[1740515194753,0.0471,88931.0,88917.0,0.10014733]
[1740515194979,0.168694,88918.0,88917.0,0.10014733]
[1740515195160,0.168694,88918.0,88917.0,0.1504548]
[1740515195404,0.168694,88918.0,88917.0,0.10014733]
[1740515195610,0.168694,88918.0,88917.0,0.00810733]
[1740515195888,0.04969253,88968.0,88919.0,0.05030747]
[1740515196105,0.0455,88947.0,88930.0,0.260711]
[1740515196292,0.168641,88946.0,88945.0,0.09204]
[1740515197077,0.0455,88947.0,88945.0,0.09204]
[1740515197284,0.168624,88955.0,88954.0,0.09204]
[1740515197684,0.168618,88958.0,88957.0,0.09204]
[1740515198293,0.02804361,88967.0,88950.0,0.09204]
[1740515198468,0.168632,88951.0,88950.0,0.09204]
[1740515198691,0.168637,88948.0,88947.0,0.05030747]
[1740515198893,0.449608,88966.0,88947.0,0.05030747]
[1740515199097,0.02804361,88967.0,88951.0,0.09204]
[1740515199293,0.168637,88948.0,88947.0,0.05030747]
[1740515199498,0.168637,88948.0,88947.0,0.14234747]
[1740515200542,0.224847,88950.0,88947.0,0.14234747]
[1740515200543,0.393482,88950.0,88947.0,0.256095]
[1740515200656,0.0463,88981.0,88950.0,0.05030747]
[1740515200870,0.168632,88951.0,88950.0,0.05030747]
[1740515201308,0.224835,88954.0,88950.0,0.05030747]
[1740515201594,0.168632,88951.0,88950.0,0.05030747]
[1740515202128,0.168607,88964.0,88963.0,0.09204]
[1740515202338,0.05387795,88999.0,88963.0,0.09204]
[1740515202339,0.05387795,88999.0,88965.0,0.31095247]
[1740515202554,0.224776,88978.0,88965.0,0.256095]
[1740515202755,0.02715538,88987.0,88965.0,0.256095]
[1740515203169,0.0489,88999.0,88965.0,0.4247]
[1740515203372,0.02690861,88996.0,88965.0,0.7498]
[1740515203738,0.0274323,88996.0,88965.0,0.581195]
[1740515203939,0.0274323,88996.0,88965.0,0.59751745]
[1740515204162,0.168573,88982.0,88965.0,0.76612245]
[1740515204342,0.16859,88974.0,88965.0,0.53440998]
[1740515204570,0.224773,88979.0,88965.0,0.59755745]
[1740515204755,0.0274323,88996.0,88965.0,0.58471745]
[1740515204962,0.168589,88974.0,88965.0,0.581195]
[1740515205176,0.0457,88997.0,88965.0,0.7498]
[1740515205375,0.16858,88979.0,88965.0,0.7498]
[1740515205617,0.0279231,88996.0,88965.0,0.581195]
[1740515205781,0.224781,88976.0,88965.0,0.581195]
[1740515205979,0.224772,88979.0,88965.0,0.581195]
[1740515206200,0.393347,88980.0,88965.0,0.7498]
[1740515206412,0.224734,88994.0,88965.0,0.7498]
[1740515206612,0.168569,88985.0,88965.0,0.7498]
[1740515206994,0.224724,88998.0,88965.0,0.7498]
[1740515206995,0.168579,88979.0,88965.0,0.7498]
[1740515207129,0.224801,88968.0,88965.0,0.58930233]
[1740515207329,0.224744,88990.0,88965.0,0.58930233]
[1740515207330,0.168595,88971.0,88965.0,0.58930233]
[1740515207531,0.2378046,88975.0,88965.0,0.58930233]
[1740515207752,0.168592,88972.0,88965.0,0.58930233]
[1740515208295,6.67e-06,88966.0,88965.0,0.58930233]
[1740515208701,0.16860967,88966.0,88965.0,0.581195]
[1740515208900,6.67e-06,88966.0,88965.0,0.53088753]
[1740515209128,0.16860967,88966.0,88965.0,0.53088753]
[1740515209304,0.16860967,88966.0,88965.0,0.3251]
[1740515209480,0.16860967,88966.0,88965.0,0.37540747]
[1740515209685,0.16860967,88966.0,88931.0,0.32196521]
[1740515209686,0.168618,88958.0,88957.0,0.09204]
[1740515210875,0.168618,88958.0,88957.0,0.14234747]
[1740515211081,0.168618,88958.0,88957.0,0.09204]
[1740515211315,0.168618,88958.0,88957.0,0.14234747]
[1740515211503,6.67e-06,88966.0,88955.0,0.09204]
[1740515211677,6.67e-06,88966.0,88954.0,0.09204]
[1740515211876,0.168624,88955.0,88954.0,0.09204]
[1740515212141,0.0464,88957.0,88939.0,0.09204]
[1740515212319,0.168664,88934.0,88933.0,0.0080982]
[1740515213102,0.168668,88932.0,88931.0,0.05030747]
[1740515213318,0.168677,88927.0,88926.0,0.3251]
[1740515213519,0.00796,88958.0,88924.0,0.05030747]
[1740515213714,0.168689,88921.0,88920.0,0.14234747]
[1740515213948,0.168689,88921.0,88920.0,0.09204]
[1740515214209,0.168698,88916.0,88915.0,0.0018126]
[1740515217368,0.46728547,88916.0,88915.0,0.0018126]
[1740515217539,0.168738,88895.0,88894.0,0.09707421]
[1740515217702,0.168738,88895.0,88894.0,0.09749694]
[1740515217904,0.16596099,88895.0,88894.0,0.09749694]
[1740515218406,0.16596099,88895.0,88894.0,9.4e-07]
[1740515218407,0.21326099,88895.0,88894.0,9.4e-07]
[1740515218608,0.51326099,88895.0,88894.0,9.4e-07]
[1740515219250,0.50770902,88895.0,88894.0,9.4e-07]
[1740515219453,0.50770902,88895.0,88834.0,0.8617]
[1740515219454,0.35568911,88895.0,88856.0,0.09204]
[1740515219658,0.168795,88865.0,88864.0,0.00181969]
[1740515219861,0.15763938,88865.0,88864.0,0.00181969]
[1740515220427,0.15763938,88865.0,88864.0,6.9e-07]
[1740515220428,0.50693938,88865.0,88864.0,6.9e-07]
[1740515220906,0.5339092,88865.0,88864.0,6.9e-07]
[1740515221443,0.02696982,88865.0,88864.0,0.21910516]
[1740515221714,0.22502,88881.0,88873.0,0.05030747]
[1740515221918,0.3,88903.0,88872.0,0.09204]
[1740515222120,0.16878,88873.0,88872.0,0.14234747]
[1740515222331,0.01828111,88903.0,88889.0,0.09204]
[1740515222535,0.224946,88911.0,88889.0,0.09204]
[1740515222687,0.082,88924.0,88892.0,0.09204]
[1740515222889,0.00858337,88921.0,88891.0,0.05030747]
[1740515223089,0.00796,88915.0,88877.0,0.37540747]
[1740515223299,0.168795,88865.0,88864.0,0.001692]
[1740515223459,0.0808,88891.0,88865.0,0.09204]
[1740515223662,0.168768,88879.0,88878.0,0.09204]
[1740515223887,0.01828111,88895.0,88880.0,0.09204]
[1740515224083,0.224987,88894.0,88880.0,0.09204]
[1740515224283,0.01828111,88895.0,88883.0,0.05030747]
[1740515224551,0.168747,88890.0,88889.0,0.09204]
[1740515224833,0.168734,88897.0,88896.0,0.09204]
[1740515225504,0.224971,88901.0,88893.0,0.05030747]
[1740515225831,0.16874,88894.0,88893.0,0.05030747]
[1740515226047,0.168711,88909.0,88903.0,0.09204]
[1740515226256,0.04969253,88937.0,88899.0,0.05030747]
[1740515226257,0.224958,88906.0,88899.0,0.05030747]
[1740515226388,0.224958,88906.0,88893.0,0.11374753]
[1740515226389,0.168738,88895.0,88894.0,0.05030747]
[1740515226616,0.168727,88901.0,88900.0,0.09204]
[1740515227214,0.273403,88927.0,88900.0,0.14234747]
[1740515227426,0.168727,88901.0,88900.0,0.14234747]
[1740515227649,0.168738,88895.0,88894.0,0.05030747]
[1740515228088,0.168738,88895.0,88891.0,0.01268]
[1740515228089,0.224977,88898.0,88891.0,0.01268]
[1740515228289,0.168755,88886.0,88881.0,0.05030747]
[1740515228515,0.02624111,88918.0,88879.0,0.09204]
[1740515228684,0.168782,88872.0,88871.0,0.09204]
[1740515228884,0.168782,88872.0,88871.0,0.14234747]
[1740515229083,0.168789,88868.0,88860.0,0.3251]
[1740515229283,0.168795,88865.0,88863.0,0.09204]
[1740515229659,0.168795,88865.0,88864.0,0.00181877]
[1740515231333,0.19563851,88865.0,88864.0,0.00181877]
[1740515231891,0.168795,88865.0,88864.0,0.00181877]
[1740515232694,0.468795,88865.0,88864.0,0.00181877]
[1740515232902,0.468795,88865.0,88864.0,7.7e-07]
[1740515233731,0.468825,88849.0,88848.0,7.7e-07]
[1740515233929,0.468833,88845.0,88844.0,7.7e-07]
[1740515235431,0.168833,88845.0,88844.0,7.7e-07]
[1740515236619,0.3,88855.0,88844.0,7.7e-07]
[1740515236789,0.1292,88884.0,88852.0,0.05030747]
[1740515236946,0.1292,88884.0,88869.0,0.05030747]
[1740515236947,0.0488,88884.0,88869.0,0.05030747]
[1740515237146,0.02807699,88884.0,88875.0,0.09204]
[1740515237369,0.02807699,88884.0,88877.0,0.09204]
[1740515237573,0.168772,88877.0,88876.0,0.14234747]
[1740515237978,0.16377,88878.0,88877.0,0.04234747]
[1740515238404,0.225023,88880.0,88866.0,0.01454085]
[1740515238609,0.168783,88871.0,88870.0,0.04234747]
[1740515238899,0.168821,88851.0,88850.0,0.13232357]
[1740515239552,0.168821,88851.0,88850.0,0.0899761]
[1740515239823,0.168821,88851.0,88850.0,0.13232357]
[1740515240905,0.168821,88851.0,88850.0,0.04234747]
[1740515241659,0.168827,88848.0,88847.0,0.01256]
[1740515241800,0.168827,88848.0,88814.0,0.0458]
[1740515241801,0.168833,88845.0,88832.0,0.04234747]
[1740515243345,0.168833,88845.0,88839.0,0.04234747]
[1740515244288,0.05765253,88886.0,88840.0,0.01454085]
[1740515244438,0.00853505,88880.0,88852.0,0.04234747]
[1740515244642,0.168808,88858.0,88857.0,0.04234747]
[1740515245682,0.00012651,88880.0,88874.0,0.04234747]
[1740515245883,0.168776,88875.0,88874.0,0.04234747]
[1740515246089,0.168793,88866.0,88865.0,0.04234747]
[1740515246466,0.168793,88866.0,88858.0,0.11374753]
[1740515246467,0.18052774,88868.0,88867.0,0.05688832]
[1740515246711,0.25,88877.0,88874.0,0.04234747]
[1740515246838,0.168776,88875.0,88874.0,0.04234747]
[1740515247063,0.475032,88877.0,88857.0,0.0899761]
[1740515247064,0.168808,88858.0,88857.0,0.13232357]
[1740515247274,0.168808,88858.0,88857.0,0.2460711]
[1740515247497,0.25,88877.0,88876.0,0.04234747]
[1740515247701,0.25,88877.0,88876.0,0.17063585]
[1740515247919,0.25,88877.0,88876.0,0.33940985]
[1740515248117,0.25,88877.0,88876.0,0.17063585]
[1740515248464,0.168774,88876.0,88875.0,0.13232357]
[1740515248899,0.168774,88876.0,88875.0,0.04234747]
[1740515249612,0.168787,88869.0,88868.0,0.05045589]
[1740515249821,0.225047,88871.0,88869.0,0.01454085]
[1740515249822,0.168786,88870.0,88869.0,0.01454085]
[1740515250223,0.25,88877.0,88876.0,0.04234747]
[1740515250452,0.418772,88877.0,88876.0,0.04234747]
[1740515250857,0.225032,88876.0,88873.0,0.04234747]
[1740515251081,0.168778,88874.0,88873.0,0.04234747]
[1740515252141,0.25,88877.0,88876.0,0.04234747]
[1740515252322,0.25,88877.0,88876.0,0.17063585]
[1740515252705,0.25,88877.0,88876.0,0.33940985]
[1740515253067,0.25,88877.0,88876.0,0.41760985]
[1740515253271,0.25,88877.0,88876.0,0.74270985]
[1740515254791,0.25,88877.0,88876.0,0.57393585]
[1740515254935,0.418772,88877.0,88876.0,0.12828838]
[1740515255139,0.418772,88877.0,88876.0,0.11374753]
[1740515255341,0.16878,88873.0,88872.0,0.04234747]
[1740515255541,0.25,88877.0,88876.0,0.21112147]
[1740515255727,0.25,88877.0,88876.0,0.17063585]
[1740515256552,0.418772,88877.0,88876.0,0.01454085]
[1740515256757,0.168785,88870.0,88869.0,0.36744747]
[1740515257323,0.168795,88865.0,88864.0,0.04234747]
[1740515257531,0.168801,88862.0,88861.0,0.01300075]
[1740515257759,0.168799,88863.0,88862.0,0.04234747]
[1740515259227,0.25,88877.0,88862.0,0.04234747]
[1740515259461,0.168791,88867.0,88862.0,0.04234747]
[1740515259626,0.168791,88868.0,88862.0,0.04234747]
[1740515259960,0.168799,88863.0,88862.0,0.04234747]
[1740515260120,0.168799,88863.0,88862.0,0.04404347]
[1740515260486,0.168799,88863.0,88862.0,0.001696]
[1740515262600,0.26012182,88866.0,88837.0,0.09732067]
[1740515262601,0.168833,88845.0,88837.0,0.09732067]
[1740515262790,0.168833,88845.0,88841.0,0.04234747]
[1740515263486,0.168833,88845.0,88837.0,0.09732067]
[1740515264006,0.5532472,88845.0,88830.0,0.0016928]
[1740515264209,0.468833,88845.0,88830.0,0.0016928]
[1740515264613,0.468859,88831.0,88830.0,8e-07]
[1740515264902,0.468859,88831.0,88830.0,0.00012764]
[1740515265104,0.468859,88831.0,88830.0,6.4e-07]
[1740515265421,0.517967,88827.0,88826.0,4.4e-07]
[1740515266537,0.16888,88820.0,88819.0,0.09728111]
[1740515266740,0.46888,88820.0,88819.0,0.09728111]
[1740515267697,0.468888,88816.0,88815.0,8e-07]
[1740515269943,0.168888,88816.0,88815.0,8e-07]
[1740515270147,0.0491,88827.0,88815.0,8e-07]
[1740515270148,0.00012642,88831.0,88815.0,8e-07]
[1740515270342,0.00012642,88831.0,88824.0,0.04234747]
[1740515270550,0.168871,88825.0,88824.0,0.04234747]
[1740515270750,0.00012642,88831.0,88830.0,0.21120847]
[1740515270962,0.16898542,88831.0,88830.0,0.04234747]
[1740515271169,0.00012642,88831.0,88830.0,0.21120847]
[1740515271399,0.00012642,88831.0,88797.0,0.5366]
[1740515271643,0.00012642,88831.0,88826.0,0.04234747]
[1740515271852,0.00012642,88831.0,88830.0,0.04234747]
[1740515272779,0.00012642,88831.0,88830.0,0.33949685]
[1740515272973,0.00012642,88831.0,88830.0,0.42049685]
[1740515275012,0.00012642,88831.0,88830.0,1.12049685]
[1740515276581,0.00012642,88831.0,88830.0,0.95163585]
[1740515277003,0.00012642,88831.0,88830.0,1.13261685]
[1740515277167,0.225015,88883.0,88871.0,0.04234747]
[1740515277368,0.168782,88872.0,88871.0,0.04234747]
[1740515277781,0.225035,88875.0,88861.0,0.04234747]
[1740515278003,0.03481442,88874.0,88857.0,0.04234747]
[1740515278216,0.16881,88857.0,88856.0,0.04234747]
[1740515278989,0.3,88873.0,88846.0,0.05446747]
[1740515279230,0.0085792,88866.0,88841.0,0.04234747]
[1740515279406,0.168839,88842.0,88841.0,0.04234747]
[1740515280226,0.0454,88860.0,88818.0,0.0833]
[1740515280455,0.0454,88860.0,88815.0,8e-07]
[1740515280456,0.168871,88825.0,88824.0,0.04234747]
[1740515280655,0.168873,88825.0,88824.0,0.04234747]
[1740515280900,0.3,88842.0,88824.0,0.04234747]
[1740515281100,0.168868,88827.0,88824.0,0.04234747]
[1740515281371,0.3,88842.0,88829.0,0.225151]
[1740515281542,0.225096,88851.0,88833.0,0.04234747]
[1740515281684,0.225075,88859.0,88839.0,0.04234747]
[1740515281885,0.03434099,88875.0,88843.0,0.04234747]
[1740515282098,0.08294099,88875.0,88849.0,0.04234747]
[1740515282322,0.08294099,88875.0,88857.0,0.04234747]
[1740515282538,0.08294099,88875.0,88856.0,0.04234747]
[1740515282741,0.08294099,88875.0,88860.0,0.04234747]
[1740515282946,0.250848,88877.0,88869.0,0.04234747]
[1740515283140,0.250848,88877.0,88860.0,0.11374753]
[1740515283141,0.250848,88877.0,88863.0,0.04234747]
[1740515283318,0.168802,88861.0,88860.0,0.05442747]
[1740515283518,0.2850971,88877.0,88860.0,0.05442747]
[1740515283519,0.168782,88873.0,88867.0,0.04234747]
[1740515283885,0.2850971,88877.0,88871.0,0.04234747]
[1740515284102,0.168782,88872.0,88871.0,0.04234747]
[1740515284668,0.5101271,88877.0,88860.0,0.01208]
[1740515284669,0.25097481,88877.0,88876.0,0.04234747]
[1740515284870,0.25097481,88877.0,88876.0,0.33940985]
[1740515285068,0.25097481,88877.0,88876.0,0.66450985]
[1740515285276,0.25097481,88877.0,88876.0,0.75448595]
[1740515285676,0.25097481,88877.0,88876.0,0.76656595]
[1740515286480,0.25097481,88877.0,88876.0,1.30316595]
[1740515286882,0.24673181,88877.0,88876.0,1.30316595]
[1740515287781,0.24673181,88877.0,88876.0,1.33821826]
[1740515288383,0.24673181,88877.0,88876.0,1.12231195]
[1740515288603,0.24673181,88877.0,88876.0,1.29108595]
[1740515288851,0.24673181,88877.0,88876.0,1.30316595]
[1740515289163,0.24673181,88877.0,88876.0,1.29108595]
[1740515289364,0.24149181,88877.0,88876.0,1.04437585]
[1740515290614,0.24149181,88877.0,88876.0,1.21314985]
[1740515290813,0.24149181,88877.0,88876.0,1.04437585]
[1740515291056,0.24149181,88877.0,88863.0,0.0812]
[1740515291171,0.24149181,88877.0,88869.0,0.04234747]
[1740515291380,0.168789,88868.0,88867.0,0.156095]
[1740515291582,0.24149181,88877.0,88849.0,0.079]
[1740515291583,0.225037,88874.0,88849.0,0.079]
[1740515291833,0.168801,88862.0,88861.0,0.04234747]
[1740515292347,0.24149181,88877.0,88873.0,0.04234747]
[1740515292575,0.168778,88874.0,88873.0,0.04234747]
[1740515292692,0.24149181,88877.0,88873.0,0.17063585]
[1740515293048,0.24149181,88877.0,88871.0,0.04234747]
[1740515293362,0.24149181,88877.0,88876.0,0.05688832]
[1740515293558,0.24149181,88877.0,88876.0,0.17063585]
[1740515293709,0.24149181,88877.0,88876.0,0.05688832]
[1740515293909,0.24149181,88877.0,88876.0,0.04234747]
[1740515294341,0.41026381,88877.0,88876.0,0.04234747]
[1740515295519,0.41026381,88877.0,88844.0,0.00810353]
[1740515295520,0.24149181,88877.0,88863.0,0.04234747]
[1740515295718,0.168818,88853.0,88852.0,0.3251]
[1740515295960,0.3456,88876.0,88833.0,0.3251]
[1740515296160,0.36776691,88875.0,88847.0,0.04234747]
[1740515296360,0.36776691,88875.0,88836.0,0.11374753]
[1740515296361,0.01828111,88874.0,88836.0,0.11374753]
[1740515296562,0.16885,88836.0,88830.0,0.0975046]
[1740515296770,0.01828111,88870.0,88833.0,0.04234747]
[1740515296968,0.08850294,88869.0,88832.0,0.04234747]
[1740515297268,0.168859,88831.0,88830.0,0.0975046]
[1740515297461,0.22512,88842.0,88830.0,0.0975046]
[1740515297667,0.01828111,88856.0,88830.0,0.0975046]
[1740515297870,0.01834292,88856.0,88830.0,0.0975046]
[1740515298079,0.00825671,88852.0,88830.0,0.0975046]
[1740515298283,0.16884,88842.0,88834.0,0.04234747]
[1740515298625,0.168852,88836.0,88834.0,0.04234747]
[1740515298821,0.168852,88835.0,88834.0,0.04234747]
[1740515299026,0.225131,88838.0,88834.0,0.04234747]
[1740515299233,0.01834292,88856.0,88834.0,0.04234747]
[1740515299644,0.168849,88837.0,88834.0,0.04234747]
[1740515299818,0.01834292,88856.0,88834.0,0.04234747]
[1740515300324,0.168817,88854.0,88840.0,0.04234747]
[1740515300525,0.01834292,88856.0,88845.0,0.04234747]
[1740515300729,0.01834292,88856.0,88835.0,0.04234747]
[1740515300924,0.168844,88839.0,88838.0,0.04234747]
[1740515301275,0.225148,88831.0,88826.0,0.01454085]